{"text_format":"1","workbook":"xlsx","n_sheets":10,"sheets":["Drop down","Instructies","COVRA vat 1","COVRA vat 2","COVRA vat 3","COVRA vat 4","COVRA vat 5","Rookmelders > 100 stuks","Rookmelders <= 100 stuks","Blad1"],"not_rendered":{"charts":0,"images":14,"macros":1,"external_links":1,"defined_names":33,"comments":0,"pivot_tables":0},"unopened":[],"bounds":{"document_bytes":16777216,"sheet_cells":100000,"rows_first":2000,"rows_last":500,"rows_between":2000,"halvings":0,"cell_chars":16384,"cell_head_chars":4096},"cells_cut":0,"cells_raw":0,"read":"whole","date_system":"1900"}

{"sheet":"Drop down","index":0,"n_rows":19,"n_cols":7,"rows_kept":19,"cut":false,"hidden":true,"merged":[]}
[null,"Chemische samenstelling"]
[null,"Katoen"]
[null,"Hout",null,"Bijtend",null,"Afstemmen met ruud en of chris kunnen"]
[null,"Plastics",null,"Giftig"]
[null,"Glas",null,"Brandbaar"]
[null,"PVC"]
[null,"Aluminium",null,"Gas",null,"Eenheid","Nuclide"]
[null,"RVS",null,"Zware metalen"]
[null,"Staal",null,null,null,"kBq","Am-241"]
[null,"IJzer",null,"Voorgeperst",null,"µCi","Ra-226"]
[null,"Andere metalen",null,"Sterk verend"]
[null,"Papier"]
[null,"Glaswol",null,"Vast"]
[null,"Slakken",null,"Vloeibaar "]
[null,"Anders",null,"Gasvormig"]
[]
[null,"Hoe samenstellen:"]
[null,"Hoe maak ik een vervolgkeuzelijst met meerdere selectievakjes in Excel? (extendoffice.com)"]
[null,"Hoe maak ik een vervolgkeuzelijst met meerdere selecties of waarden in Excel? (extendoffice.com)"]

{"sheet":"Instructies","index":1,"n_rows":0,"n_cols":0,"rows_kept":0,"cut":false,"hidden":false,"merged":[]}

{"sheet":"COVRA vat 1","index":2,"n_rows":30,"n_cols":7,"rows_kept":30,"cut":false,"hidden":false,"merged":[[0,6,4,6],[28,0,29,0],[28,4,29,4],[28,5,29,5],[28,1,28,2],[29,1,29,2],[5,6,29,6]]}
["Aantal","Nuclide","Activiteit","Eenheid","Activiteit\nAm-241 MBq","Activiteit\nRa-226 MBq","VOORBEELD"]
[10,"Ra-226",0.08,"µCi",{"$f":"IF(B2=\"Am-241\",IF(D2=\"kBq\",A2*(C2/1000),A2*((C2/1000)*37)),\"\")","v":""},{"$f":"IF(B2=\"Ra-226\",IF(D2=\"kBq\",A2*(A2/1000),A2*((C2/1000)*37)),\"\")","v":2.9600000000000005E-2}]
[2,"Am-241",37,"kBq",7.3999999999999996E-2,""]
[8,"Am-241",1,"µCi",0.29599999999999999,""]
[104,"Am-241",74,"kBq",7.6959999999999997,""]
[null,null,null,null,"","","INVULLEN\nDeze gegevens worden overgenomen op het formulier \"Rookmelders > 100 stuks\""]
[null,null,null,null,"",""]
[null,null,null,null,"",""]
[null,null,null,null,"",""]
[null,null,null,null,"",""]
[null,null,null,null,"",""]
[null,null,null,null,"",""]
[null,null,null,null,"",""]
[null,null,null,null,"",""]
[null,null,null,null,"",""]
[null,null,null,null,"",""]
[null,null,null,null,"",""]
[null,null,null,null,"",""]
[null,null,null,null,"",""]
[null,null,null,null,"",""]
[null,null,null,null,"",""]
[null,null,null,null,"",""]
[null,null,null,null,"",""]
[null,null,null,null,"",""]
[null,null,null,null,"",""]
[null,null,null,null,"",""]
[null,null,null,null,"",""]
[null,null,null,null,"",""]
[{"$f":"SUM(A6:A28)","v":0},"COVRA Vatnr:",null,null,{"$f":"SUM(E6:E28)","v":0},{"$f":"SUM(F6:F28)","v":0}]
[null,"Bruto gewicht (kg)"]

{"sheet":"COVRA vat 2","index":3,"n_rows":30,"n_cols":7,"rows_kept":30,"cut":false,"hidden":false,"merged":[[0,6,4,6],[5,6,29,6],[28,0,29,0],[28,4,29,4],[28,5,29,5],[28,1,28,2],[29,1,29,2]]}
["Aantal","Nuclide","Activiteit","Eenheid","Activiteit\nAm-241 MBq","Activiteit\nRa-226 MBq","VOORBEELD"]
[10,"Ra-226",0.08,"µCi",{"$f":"IF(B2=\"Am-241\",IF(D2=\"kBq\",A2*(C2/1000),A2*((C2/1000)*37)),\"\")","v":""},{"$f":"IF(B2=\"Ra-226\",IF(D2=\"kBq\",A2*(A2/1000),A2*((C2/1000)*37)),\"\")","v":2.9600000000000005E-2}]
[2,"Am-241",37,"kBq",7.3999999999999996E-2,""]
[8,"Am-241",1,"µCi",0.29599999999999999,""]
[104,"Am-241",74,"kBq",7.6959999999999997,""]
[null,null,null,null,"","","INVULLEN\nDeze gegevens worden overgenomen op het formulier \"Rookmelders > 100 stuks\""]
[null,null,null,null,"",""]
[null,null,null,null,"",""]
[null,null,null,null,"",""]
[null,null,null,null,"",""]
[null,null,null,null,"",""]
[null,null,null,null,"",""]
[null,null,null,null,"",""]
[null,null,null,null,"",""]
[null,null,null,null,"",""]
[null,null,null,null,"",""]
[null,null,null,null,"",""]
[null,null,null,null,"",""]
[null,null,null,null,"",""]
[null,null,null,null,"",""]
[null,null,null,null,"",""]
[null,null,null,null,"",""]
[null,null,null,null,"",""]
[null,null,null,null,"",""]
[null,null,null,null,"",""]
[null,null,null,null,"",""]
[null,null,null,null,"",""]
[null,null,null,null,"",""]
[{"$f":"SUM(A6:A28)","v":0},"COVRA Vatnr:",null,null,{"$f":"SUM(E6:E28)","v":0},{"$f":"SUM(F6:F28)","v":0}]
[null,"Bruto gewicht (kg)"]

{"sheet":"COVRA vat 3","index":4,"n_rows":30,"n_cols":7,"rows_kept":30,"cut":false,"hidden":false,"merged":[[0,6,4,6],[5,6,29,6],[28,0,29,0],[28,4,29,4],[28,5,29,5],[28,1,28,2],[29,1,29,2]]}
["Aantal","Nuclide","Activiteit","Eenheid","Activiteit\nAm-241 MBq","Activiteit\nRa-226 MBq","VOORBEELD"]
[10,"Ra-226",0.08,"µCi",{"$f":"IF(B2=\"Am-241\",IF(D2=\"kBq\",A2*(C2/1000),A2*((C2/1000)*37)),\"\")","v":""},{"$f":"IF(B2=\"Ra-226\",IF(D2=\"kBq\",A2*(A2/1000),A2*((C2/1000)*37)),\"\")","v":2.9600000000000005E-2}]
[2,"Am-241",37,"kBq",7.3999999999999996E-2,""]
[8,"Am-241",1,"µCi",0.29599999999999999,""]
[104,"Am-241",74,"kBq",7.6959999999999997,""]
[null,null,null,null,"","","INVULLEN\nDeze gegevens worden overgenomen op het formulier \"Rookmelders > 100 stuks\""]
[null,null,null,null,"",""]
[null,null,null,null,"",""]
[null,null,null,null,"",""]
[null,null,null,null,"",""]
[null,null,null,null,"",""]
[null,null,null,null,"",""]
[null,null,null,null,"",""]
[null,null,null,null,"",""]
[null,null,null,null,"",""]
[null,null,null,null,"",""]
[null,null,null,null,"",""]
[null,null,null,null,"",""]
[null,null,null,null,"",""]
[null,null,null,null,"",""]
[null,null,null,null,"",""]
[null,null,null,null,"",""]
[null,null,null,null,"",""]
[null,null,null,null,"",""]
[null,null,null,null,"",""]
[null,null,null,null,"",""]
[null,null,null,null,"",""]
[null,null,null,null,"",""]
[{"$f":"SUM(A6:A28)","v":0},"COVRA Vatnr:",null,null,{"$f":"SUM(E6:E28)","v":0},{"$f":"SUM(F6:F28)","v":0}]
[null,"Bruto gewicht (kg)"]

{"sheet":"COVRA vat 4","index":5,"n_rows":30,"n_cols":7,"rows_kept":30,"cut":false,"hidden":false,"merged":[[0,6,4,6],[5,6,29,6],[28,0,29,0],[28,4,29,4],[28,5,29,5],[28,1,28,2],[29,1,29,2]]}
["Aantal","Nuclide","Activiteit","Eenheid","Activiteit\nAm-241 MBq","Activiteit\nRa-226 MBq","VOORBEELD"]
[10,"Ra-226",0.08,"µCi",{"$f":"IF(B2=\"Am-241\",IF(D2=\"kBq\",A2*(C2/1000),A2*((C2/1000)*37)),\"\")","v":""},{"$f":"IF(B2=\"Ra-226\",IF(D2=\"kBq\",A2*(A2/1000),A2*((C2/1000)*37)),\"\")","v":2.9600000000000005E-2}]
[2,"Am-241",37,"kBq",7.3999999999999996E-2,""]
[8,"Am-241",1,"µCi",0.29599999999999999,""]
[104,"Am-241",74,"kBq",7.6959999999999997,""]
[null,null,null,null,"","","INVULLEN\nDeze gegevens worden overgenomen op het formulier \"Rookmelders > 100 stuks\""]
[null,null,null,null,"",""]
[null,null,null,null,"",""]
[null,null,null,null,"",""]
[null,null,null,null,"",""]
[null,null,null,null,"",""]
[null,null,null,null,"",""]
[null,null,null,null,"",""]
[null,null,null,null,"",""]
[null,null,null,null,"",""]
[null,null,null,null,"",""]
[null,null,null,null,"",""]
[null,null,null,null,"",""]
[null,null,null,null,"",""]
[null,null,null,null,"",""]
[null,null,null,null,"",""]
[null,null,null,null,"",""]
[null,null,null,null,"",""]
[null,null,null,null,"",""]
[null,null,null,null,"",""]
[null,null,null,null,"",""]
[null,null,null,null,"",""]
[null,null,null,null,"",""]
[{"$f":"SUM(A6:A28)","v":0},"COVRA Vatnr:",null,null,{"$f":"SUM(E6:E28)","v":0},{"$f":"SUM(F6:F28)","v":0}]
[null,"Bruto gewicht (kg)"]

{"sheet":"COVRA vat 5","index":6,"n_rows":30,"n_cols":7,"rows_kept":30,"cut":false,"hidden":false,"merged":[[0,6,4,6],[5,6,29,6],[28,0,29,0],[28,4,29,4],[28,5,29,5],[28,1,28,2],[29,1,29,2]]}
["Aantal","Nuclide","Activiteit","Eenheid","Activiteit\nAm-241 MBq","Activiteit\nRa-226 MBq","VOORBEELD"]
[10,"Ra-226",0.08,"µCi",{"$f":"IF(B2=\"Am-241\",IF(D2=\"kBq\",A2*(C2/1000),A2*((C2/1000)*37)),\"\")","v":""},{"$f":"IF(B2=\"Ra-226\",IF(D2=\"kBq\",A2*(A2/1000),A2*((C2/1000)*37)),\"\")","v":2.9600000000000005E-2}]
[2,"Am-241",37,"kBq",7.3999999999999996E-2,""]
[8,"Am-241",1,"µCi",0.29599999999999999,""]
[104,"Am-241",74,"kBq",7.6959999999999997,""]
[null,null,null,null,"","","INVULLEN\nDeze gegevens worden overgenomen op het formulier \"Rookmelders > 100 stuks\""]
[null,null,null,null,"",""]
[null,null,null,null,"",""]
[null,null,null,null,"",""]
[null,null,null,null,"",""]
[null,null,null,null,"",""]
[null,null,null,null,"",""]
[null,null,null,null,"",""]
[null,null,null,null,"",""]
[null,null,null,null,"",""]
[null,null,null,null,"",""]
[null,null,null,null,"",""]
[null,null,null,null,"",""]
[null,null,null,null,"",""]
[null,null,null,null,"",""]
[null,null,null,null,"",""]
[null,null,null,null,"",""]
[null,null,null,null,"",""]
[null,null,null,null,"",""]
[null,null,null,null,"",""]
[null,null,null,null,"",""]
[null,null,null,null,"",""]
[null,null,null,null,"",""]
[{"$f":"SUM(A6:A28)","v":0},"COVRA Vatnr:",null,null,{"$f":"SUM(E6:E28)","v":0},{"$f":"SUM(F6:F28)","v":0}]
[null,"Bruto gewicht (kg)"]

{"sheet":"Rookmelders > 100 stuks","index":7,"n_rows":37,"n_cols":29,"rows_kept":37,"cut":false,"hidden":false,"merged":[[5,24,5,27],[13,15,15,15],[13,16,14,17],[13,1,14,8],[23,24,23,27],[23,1,23,2],[32,8,33,13],[29,8,30,13],[13,12,15,12],[13,13,15,13],[13,14,15,14],[13,0,14,0],[13,9,15,9],[13,10,15,10],[13,11,15,11],[22,1,22,2],[17,1,17,2],[16,1,16,2],[15,1,15,2],[20,1,20,2],[21,1,21,2],[18,1,18,2],[19,1,19,2],[24,28,36,28],[25,1,25,2],[24,1,24,2],[36,8,36,13],[31,8,31,13],[26,17,27,18],[34,8,35,13],[26,19,27,27],[29,0,30,1],[24,24,24,27],[25,24,25,27],[28,17,28,27],[29,17,30,27],[31,17,32,27],[33,17,34,27],[29,2,30,7],[11,16,11,22],[19,24,19,27],[20,24,20,27],[21,24,21,27],[22,24,22,27],[16,24,16,27],[17,24,17,27],[13,24,15,27],[18,24,18,27],[13,22,15,22],[13,21,14,21],[13,18,14,18],[13,19,14,19],[13,20,14,20],[2,0,2,28],[3,3,4,22],[13,23,15,23],[10,25,10,26],[6,3,6,8],[7,3,7,8],[8,3,8,8],[9,3,9,8],[10,3,10,8],[11,3,11,8],[6,16,6,22],[7,16,7,22],[8,16,8,22],[9,16,9,22],[10,16,10,22]]}
[]
[]
["AANVRAAGFORMULIER VOOR HET OPHALEN VAN RADIOACTIEF AFVAL"]
[]
[]
["Factuuradres:",null,null,null,null,null,null,null,null,"Afhaaladres:",null,null,null,null,null,null,null,null,null,null,null,null,null,null,"Inzenden aan: afval@covra.nl"]
["Bedrijf/instelling",null,null,null,null,null,null,null,null,"Bedrijf/instelling",null,null,null,null,null,null,null,null,null,null,null,null,null,null,"Klantcode"]
["Postadres",null,null,null,null,null,null,null,null,"Adres",null,null,null,null,null,null,null,null,null,null,null,null,null,null,"Aanmeldingsnr."]
["Postcode/plaats",null,null,null,null,null,null,null,null,"Postcode/plaats",null,null,null,null,null,null,null,null,null,null,null,null,null,null,"Transportdatum"]
["Telefoon",null,null,null,null,null,null,null,null,"Contactpersoon"]
["Opdrachtnummer",null,null,null,null,null,null,null,null,"Telefoon contact",null,null,null,null,null,null,null,null,null,null,null,null,null,null,"T&L","BDV",null,"C&Z"]
["Emailadres facturen",null,null,null,null,null,null,null,null,"Emailadres contact"]
[]
[null,"    Radionuclide met bijbehorende activiteit in MBq",null,null,null,null,null,null,null,"Voorgeperst","Sterk verend","Niet persbaar","Asbest","Euratom *)","Toxisch","Zware metalen","Dosistempo in mSv/u",null,"Gewicht\nin kg","Vocht %","Stof/\npoeder %","Stofnr.",null,"Selecteer","Chemische samenstelling"]
[]
["COVRA\nvatnr.","Am-241",null,"Ra-226",null,null,null,null,"Totaal\naantal stuks",null,null,null,null,null,null,null,"aan opp. collo","op 1 m","Bruto","zie alg.\nvoorw.","zie alg.\nvoorw.","EURAL"]
[{"$f":"IF('COVRA vat 1'!D29=0,HYPERLINK(\"#'COVRA vat 1'!D29\",\"-> Klik hier\"),'COVRA vat 1'!D29)","v":"-> Klik hier"},{"$f":"'COVRA vat 1'!E29","v":0},null,{"$f":"'COVRA vat 1'!F29","v":0},null,null,null,null,{"$f":"'COVRA vat 1'!A29","v":0},null,null,null,null,null,null,null,null,null,{"$f":"'COVRA vat 1'!D30","v":0},null,null,{"$f":"IF(A17<>\"-> klik hier\",\"000002\",\"\")","v":""},{"$f":"IF(Q17=0,\"\",IF(Q17<=0.005,\"I wit\",IF(Q17<=0.5,IF(R17<=0.01,\"II geel\",\"III geel\"),\"III geel\")))","v":""},null,{"$f":"IF(A17<>\"-> klik hier\",\"Plastics,Andere metalen\",\"\")","v":""}]
[{"$f":"IF('COVRA vat 2'!D29=0,HYPERLINK(\"#'COVRA vat 2'!D29\",\"-> Klik hier\"),'COVRA vat 2'!D29)","v":"-> Klik hier"},{"$f":"'COVRA vat 2'!E29","v":0},null,{"$f":"'COVRA vat 2'!F29","v":0},null,null,null,null,{"$f":"'COVRA vat 2'!A29","v":0},null,null,null,null,null,null,null,null,null,{"$f":"'COVRA vat 2'!D30","v":0},null,null,{"$f":"IF(A18<>\"-> klik hier\",\"000002\",\"\")","v":""},{"$f":"IF(Q18=0,\"\",IF(Q18<=0.005,\"I wit\",IF(Q18<=0.5,IF(R18<=0.01,\"II geel\",\"III geel\"),\"III geel\")))","v":""},null,{"$f":"IF(A18<>\"-> klik hier\",\"Plastics,Andere metalen\",\"\")","v":""}]
[{"$f":"IF('COVRA vat 3'!D29=0,HYPERLINK(\"#'COVRA vat 3'!D29\",\"-> Klik hier\"),'COVRA vat 3'!D29)","v":"-> Klik hier"},{"$f":"'COVRA vat 3'!E29","v":0},null,{"$f":"'COVRA vat 3'!F29","v":0},null,null,null,null,{"$f":"'COVRA vat 3'!A29","v":0},null,null,null,null,null,null,null,null,null,{"$f":"'COVRA vat 3'!D30","v":0},null,null,{"$f":"IF(A19<>\"-> klik hier\",\"000002\",\"\")","v":""},"",null,{"$f":"IF(A19<>\"-> klik hier\",\"Plastics,Andere metalen\",\"\")","v":""}]
[{"$f":"IF('COVRA vat 4'!D29=0,HYPERLINK(\"#'COVRA vat 4'!D29\",\"-> Klik hier\"),'COVRA vat 4'!D29)","v":"-> Klik hier"},{"$f":"'COVRA vat 4'!E29","v":0},null,{"$f":"'COVRA vat 4'!F29","v":0},null,null,null,null,{"$f":"'COVRA vat 4'!A29","v":0},null,null,null,null,null,null,null,null,null,{"$f":"'COVRA vat 4'!D30","v":0},null,null,{"$f":"IF(A20<>\"-> klik hier\",\"000002\",\"\")","v":""},"",null,{"$f":"IF(A20<>\"-> klik hier\",\"Plastics,Andere metalen\",\"\")","v":""},null,{"$f":"IF(S20=0,\"\",IF(S20<=0.005,\"I wit\",IF(S20<=0.5,IF(T20<=0.01,\"II geel\",\"III geel\"),\"III geel\")))","v":""}]
[{"$f":"IF('COVRA vat 5'!D29=0,HYPERLINK(\"#'COVRA vat 5'!D29\",\"-> Klik hier\"),'COVRA vat 5'!D29)","v":"-> Klik hier"},{"$f":"'COVRA vat 5'!E29","v":0},null,{"$f":"'COVRA vat 5'!F29","v":0},null,null,null,null,{"$f":"'COVRA vat 5'!A29","v":0},null,null,null,null,null,null,null,null,null,{"$f":"'COVRA vat 5'!D30","v":0},null,null,{"$f":"IF(A21<>\"-> klik hier\",\"000002\",\"\")","v":""},"",null,{"$f":"IF(A21<>\"-> klik hier\",\"Plastics,Andere metalen\",\"\")","v":""}]
[null,null,null,null,null,null,null,null,null,null,null,null,null,null,null,null,null,null,null,null,null,null,""]
[null,null,null,null,null,null,null,null,null,null,null,null,null,null,null,null,null,null,null,null,null,null,"",null,null,null,{"$f":"IF(S23=0,\"\",IF(S23<=0.005,\"I wit\",IF(S23<=0.5,IF(T23<=0.01,\"II geel\",\"III geel\"),\"III geel\")))","v":""}]
[null,null,null,null,null,null,null,null,null,null,null,null,null,null,null,null,null,null,null,null,null,null,"",null,null,null,{"$f":"IF(S24=0,\"\",IF(S24<=0.005,\"I wit\",IF(S24<=0.5,IF(T24<=0.01,\"II geel\",\"III geel\"),\"III geel\")))","v":""}]
[null,null,null,null,null,null,null,null,null,null,null,null,null,null,null,null,null,null,null,null,null,null,"",null,null,null,{"$f":"IF(S25=0,\"\",IF(S25<=0.005,\"I wit\",IF(S25<=0.5,IF(T25<=0.01,\"II geel\",\"III geel\"),\"III geel\")))","v":""},null,"Formuliernummer FA0XX rev. 01 d.d 14-02-2022"]
[null,null,null,null,null,null,null,null,null,null,null,null,null,null,null,null,null,null,null,null,null,null,"",null,null,{"$f":"IF(S26=0,\"\",IF(S26<=0.005,\"I wit\",IF(S26<=0.5,IF(T26<=0.01,\"II geel\",\"III geel\"),\"III geel\")))","v":""}]
["*) Aankruisen wat van toepassing is. Opgenomen in een Euratom/IAEA boekhouding ",null,null,null,null,null,null,null,null,null,null,null,null,null,null,null,null,"Opmerkingen:"]
["     voor kerntechnisch materiaal?"]
[]
["Ondergetekende:**)",null,null,null,null,null,null,null," verklaart:"]
[]
["a. dat bovenstaande volledig en juist is ingevuld;",null,null,null,null,null,null,null,{"$f":"TODAY()","v":"2023-01-17"}]
["b. dat voldaan is aan de voorschriften en bepalingen, welke ",null,null,null,null,null,null,null,"(datum)"]
["    in de Algemene Voorwaarden van COVRA zijn vermeld;"]
["c. tekenbevoegd te zijn en akkoord te gaan met de Algemene Voorwaarden"]
["    van COVRA."]
["**) Naam en functie verantwoordelijk persoon.",null,null,null,null,null,null,null,"(handtekening)"]

{"sheet":"Rookmelders <= 100 stuks","index":8,"n_rows":36,"n_cols":24,"rows_kept":36,"cut":false,"hidden":false,"merged":[[28,6,29,6],[29,9,30,10],[29,11,30,22],[31,6,32,6],[31,9,32,22],[33,6,34,6],[33,9,34,22],[23,23,35,23],[24,0,24,2],[24,3,24,4],[24,7,24,9],[24,10,24,11],[24,12,24,13],[24,14,24,22],[25,9,28,22],[28,0,29,1],[28,2,29,5],[23,0,23,2],[23,3,23,4],[23,7,23,9],[23,10,23,11],[23,12,23,13],[23,14,23,22],[22,0,22,2],[22,3,22,4],[22,7,22,9],[22,10,22,11],[22,12,22,13],[22,14,22,22],[21,14,21,22],[20,0,20,2],[20,3,20,4],[20,7,20,9],[20,10,20,11],[20,12,20,13],[20,14,20,22],[21,0,21,2],[21,3,21,4],[21,7,21,9],[21,10,21,11],[21,12,21,13],[19,14,19,22],[18,0,18,2],[18,3,18,4],[18,8,18,9],[18,10,18,11],[18,12,18,13],[18,14,18,22],[19,0,19,2],[19,3,19,4],[19,7,19,9],[19,10,19,11],[19,12,19,13],[17,14,17,22],[16,0,16,2],[16,3,16,4],[16,8,16,9],[16,10,16,11],[16,12,16,13],[16,14,16,22],[17,0,17,2],[17,3,17,4],[17,8,17,9],[17,10,17,11],[17,12,17,13],[9,3,9,7],[9,12,9,17],[10,3,10,7],[13,19,13,22],[14,0,14,2],[14,3,14,4],[14,7,14,9],[14,10,14,11],[14,12,14,13],[14,14,14,22],[13,0,13,2],[13,3,13,4],[13,6,13,9],[13,10,13,11],[13,12,13,13],[13,14,13,16],[2,0,2,23],[5,12,5,15],[6,3,6,7],[6,12,6,17],[7,3,7,7],[7,12,7,17],[8,3,8,7],[8,12,8,17],[5,19,5,22],[10,12,10,17],[10,20,10,21],[15,0,15,2],[15,3,15,4],[11,3,11,7],[11,12,11,17],[15,7,15,9],[15,10,15,11],[15,12,15,13],[15,14,15,22]]}
[]
[]
["AANVRAAGFORMULIER VOOR HET OPHALEN VAN RADIOACTIEF AFVAL"]
[]
[]
["Factuuradres:",null,null,null,null,null,null,null,null,"Afhaaladres:",null,null,null,null,null,null,null,null,null,"Inzenden aan: afval@covra.nl"]
["Bedrijf/instelling",null,null,null,null,null,null,null,null,"Bedrijf/instelling",null,null,null,null,null,null,null,null,null,"Klantcode"]
["Postadres",null,null,null,null,null,null,null,null,"Adres",null,null,null,null,null,null,null,null,null,"Aanmeldingsnr."]
["Postcode/plaats",null,null,null,null,null,null,null,null,"Postcode/plaats",null,null,null,null,null,null,null,null,null,"Transportdatum"]
["Telefoon",null,null,null,null,null,null,null,null,"Contactpersoon"]
["Opdrachtnummer",null,null,null,null,null,null,null,null,"Telefoon contact",null,null,null,null,null,null,null,null,null,"T&L","BDV",null,"C&Z"]
["Emailadres facturen",null,null,null,null,null,null,null,null,"Emailadres contact"]
[]
["Merk",null,null,"Type",null,"Aantal","Activiteit per stuk",null,null,null,"Radionuclide *)",null,"COVRA Vatnr.",null,"Opmerkingen"]
[]
[null,null,null,null,null,null,null,null,null,null,null,null,null,null,null,null,null,null,null,null,null,null,null,{"$f":"SUM(B16:K16)","v":0}]
[null,null,null,null,null,null,null,null,null,null,null,null,null,null,null,null,null,null,null,null,null,null,null,0]
[null,null,null,null,null,null,null,null,null,null,null,null,null,null,null,null,null,null,null,null,null,null,null,0]
[null,null,null,null,null,null,null,null,null,null,null,null,null,null,null,null,null,null,null,null,null,null,null,0]
[null,null,null,null,null,null,null,null,null,null,null,null,null,null,null,null,null,null,null,null,null,null,null,0]
[null,null,null,null,null,null,null,null,null,null,null,null,null,null,null,null,null,null,null,null,null,null,null,0]
[null,null,null,null,null,null,null,null,null,null,null,null,null,null,null,null,null,null,null,null,null,null,null,0]
[null,null,null,null,null,null,null,null,null,null,null,null,null,null,null,null,null,null,null,null,null,null,null,0]
[null,null,null,null,null,null,null,null,null,null,null,null,null,null,null,null,null,null,null,null,null,null,null,"Formuliernummer FA007 rev. 7 d.d 31-01-2022"]
[]
["*) Aankruisen wat van toepassing is.",null,null,null,null,null,null,null,null,"De rookmelders moeten worden gesorteerd op activiteitsklasse (zie Technische Voorwaarden) en vervolgens per klasse in aantallen van maximaal 10 stuks per zak van doorschijnend plastic worden samengepakt. De zak(ken) moet(en) worden voorzien van een label met opgave van type rookmelder, activiteit + aantal."]
[]
[]
["Ondergetekende:**)",null,null,null,null,null,"verklaart:"]
[null,null,null,null,null,null,null,null,null,"Opmerkingen:"]
["a. dat bovenstaande volledig en juist is ingevuld;",null,null,null,null,null,{"$f":"NOW()","v":"2023-01-17T10:26:08.490"}]
["b. dat voldaan is aan de voorschriften en bepalingen, welke ",null,null,null,null,null,"(datum)"]
["    in de Algemene Voorwaarden van COVRA zijn vermeld;"]
["c. tekenbevoegd te zijn en akkoord te gaan met de Algemene"]
["    Voorwaarden van COVRA."]
["**) Naam en functie verantwoordelijk persoon.",null,null,null,null,null,"(handtekening)"]

{"sheet":"Blad1","index":9,"n_rows":1,"n_cols":1,"rows_kept":1,"cut":false,"hidden":true,"merged":[]}
["Click"]